fUST/lending_fUST_20250107
["ID","MTS","AMOUNT","RATE_DAILY","PERIOD"]
[347996730,1736263838445,-618.49,0.00019452,3]
[347996732,1736263838455,-500.0,0.00019452,3]
[347996734,1736263838464,-667.58,0.00019452,3]
[347996736,1736263838473,-500.0,0.00019452,3]
[347996738,1736263838483,-500.0,0.00019452,3]
[347996740,1736263838492,-500.0,0.00019452,3]
[347996742,1736263838502,-500.0,0.00019452,3]
[347996744,1736263838511,-514.33416895,0.00019452,3]
[347996746,1736263838520,-1383.89,0.00019452,3]
[347996748,1736263838530,-500.0,0.00019452,3]
[347996750,1736263838539,-814.18,0.00019452,3]
[347996752,1736263838548,-500.0,0.00019452,3]
[347996754,1736263838557,-6155.47,0.00019452,3]
[347996756,1736263838567,-1040.71,0.00019452,3]
[347996758,1736263838576,-1414.04,0.00019452,3]
[347996760,1736263838586,-500.0,0.00019452,3]
[347996762,1736263838595,-500.0,0.00019452,3]
[347996764,1736263838607,-751.25,0.00019452,3]
[347996766,1736263838620,-500.0,0.00019452,3]
[347996768,1736263838639,-500.0,0.00019452,3]
[347996770,1736263838662,-500.0,0.00019452,3]
[347996772,1736263838675,-1546.8,0.00019452,3]
[347996774,1736263838687,-999.05,0.00019452,3]
[347996776,1736263838697,-736.34,0.00019452,3]
[347996778,1736263838706,-500.0,0.00019452,3]
[347996780,1736263838716,-776.57,0.00019452,3]
[347996782,1736263838726,-500.0,0.00019452,3]
[347996784,1736263838736,-773.0,0.00019452,3]
[347996787,1736263838745,-827.58,0.00019452,3]
[347996789,1736263838755,-2337.21,0.00019452,3]
[347996791,1736263838765,-500.0,0.00019452,3]
[347996793,1736263838775,-559.35,0.00019452,3]
[347996795,1736263838784,-500.0,0.00019452,3]
[347996797,1736263838794,-500.0,0.00019452,3]
[347996799,1736263838804,-500.0,0.00019452,3]
[347996801,1736263838813,-906.42,0.00019452,3]
[347996803,1736263838822,-500.0,0.00019452,3]
[347996805,1736263838832,-500.0,0.00019452,3]
[347996807,1736263838841,-542.27,0.00019452,3]
[347996809,1736263838850,-500.0,0.00019452,3]
[347996811,1736263838863,-500.0,0.00019452,3]
[347996813,1736263838872,-500.0,0.00019452,3]
[347996815,1736263838882,-500.0,0.00019452,3]
[347996817,1736263838892,-1275.13,0.00019452,3]
[347996819,1736263838901,-500.0,0.00019452,3]
[347996821,1736263838911,-1612.95,0.00019452,3]
[347996823,1736263838923,-500.0,0.00019452,3]
[347996825,1736263838932,-1523.59,0.00019452,3]
[347996827,1736263838941,-500.0,0.00019452,3]
[347996829,1736263838951,-500.0,0.00019452,3]
[347996831,1736263838962,-500.0,0.00019452,3]
[347996833,1736263838972,-500.0,0.00019452,3]
[347996835,1736263838981,-500.0,0.00019452,3]
[347996837,1736263838990,-500.0,0.00019452,3]
[347996838,1736263838999,-1375.03,0.00019452,3]
[347996840,1736263839008,-500.0,0.00019452,3]
[347996842,1736263839018,-575.94,0.00019452,3]
[347996844,1736263839027,-500.0,0.00019452,3]
[347996846,1736263839037,-4023.33,0.00019452,3]
[347996848,1736263839047,-500.0,0.00019452,3]
[347996850,1736263839056,-1007.28,0.00019452,3]
[347996852,1736263839066,-590.09,0.00019452,3]
[347996854,1736263839077,-500.0,0.00019452,3]
[347996856,1736263839096,-500.0,0.00019452,3]
[347996858,1736263839111,-1030.77,0.00019452,3]
[347996860,1736263839121,-3539.04,0.00019452,3]
[347996862,1736263839131,-500.0,0.00019452,3]
[347996864,1736263839141,-500.0,0.00019452,3]
[347996866,1736263839151,-30570.14,0.00019452,3]
[347996868,1736263839160,-500.0,0.00019452,3]
[347996870,1736263839169,-1517.96,0.00019452,3]
[347996872,1736263839181,-500.0,0.00019452,3]
[347996874,1736263839196,-500.0,0.00019452,3]
[347996876,1736263839205,-500.0,0.00019452,3]
[347996877,1736263839215,-500.0,0.00019452,3]
[347996878,1736263839226,-500.0,0.00019452,3]
[347996879,1736263839237,-921.02,0.00019452,3]
[347996880,1736263839247,-500.0,0.00019452,3]
[347996881,1736263839257,-503.70279704,0.00019452,3]
[347996882,1736263839267,-2766.53,0.00019452,3]
[347996883,1736263839281,-500.0,0.00019452,3]
[347996884,1736263839291,-500.0,0.00019452,3]
[347996885,1736263839302,-500.0,0.00019452,2]
[347996886,1736263839312,-500.0,0.00019452,3]
[347996887,1736263839322,-8812.14,0.00019452,3]
[347996888,1736263839332,-879.36,0.00019452,3]
[347996889,1736263839342,-500.0,0.00019452,3]
[347996890,1736263839352,-731.48,0.00019452,3]
[347996891,1736263839366,-500.0,0.00019452,2]
[347996892,1736263839376,-500.0,0.00019452,3]
[347996900,1736263839510,-500.0,0.00019452,3]
[347996902,1736263839520,-500.0,0.00019452,3]
[347996904,1736263839530,-950.17,0.00019452,3]
[347996906,1736263839539,-1296.81,0.00019452,3]
[347996908,1736263839549,-500.0,0.00019452,3]
[347996910,1736263839558,-500.0,0.00019452,3]
[347996912,1736263839568,-2492.97,0.00019452,3]
[347996914,1736263839577,-500.0,0.00019452,3]
[347996916,1736263839587,-545.75,0.00019452,3]
[347996918,1736263839597,-585.54,0.00019452,3]
[347996920,1736263839608,-500.0,0.00019452,3]
[347996923,1736263839618,-500.0,0.00019452,3]
[347996925,1736263839627,-266.37762227,0.00019473,2]
[347996928,1736263839636,-4549.22276765,0.0001959,2]
[347996930,1736263839645,-420.0,0.00019639,2]
[347996932,1736263839654,-1303.70695,0.0001964,10]
[347996934,1736263839664,-1000.0,0.0001966,10]
[347996936,1736263839674,-1000.0,0.0001968,10]
[347996938,1736263839683,-151.0,0.000197,2]
[347996941,1736263839693,-1000.0,0.000197,10]
[347996944,1736263839702,-1000.0,0.0001972,10]
[347996947,1736263839712,-845.14232056,0.00019721,2]
[347996950,1736263839721,-500.0,0.00019726,3]
[347996953,1736263839730,-151.0,0.00019726,2]
[347996956,1736263839739,-157.669,0.00019726,2]
[347996958,1736263839748,-581.59,0.00019726,3]
[347996960,1736263839758,-500.0,0.00019726,3]
[347996961,1736263839767,-500.0,0.00019726,3]
[347996963,1736263839776,-500.0,0.00019726,3]
[347996965,1736263839786,-500.0,0.00019726,3]
[347996967,1736263839795,-537.31,0.00019726,3]
[347996969,1736263839804,-500.0,0.00019726,3]
[347996971,1736263839814,-518.25615128,0.00019726,3]
[347996973,1736263839823,-500.0,0.00019726,3]
[347996975,1736263839832,-500.0,0.00019726,3]
[347996977,1736263839841,-500.0,0.00019726,3]
[347996979,1736263839851,-500.0,0.00019726,3]
[347996981,1736263839861,-500.0,0.00019726,3]
[347996984,1736263839871,-500.0,0.00019726,3]
[347996985,1736263839881,-500.0,0.00019726,3]
[347996987,1736263839890,-500.0,0.00019726,3]
[347996989,1736263839900,-500.0,0.00019726,2]
[347996992,1736263839911,-500.0,0.00019726,3]
[347996993,1736263839920,-500.0,0.00019726,3]
[347996995,1736263839931,-537.50698404,0.00019726,3]
[347996997,1736263839941,-500.0,0.00019726,3]
[347996999,1736263839951,-500.0,0.00019726,3]
[347997001,1736263839960,-6647.35,0.00019726,3]
[347997003,1736263839970,-500.0,0.00019726,3]
[347997006,1736263839982,-500.0,0.00019726,3]
[347997007,1736263839992,-500.0,0.00019726,3]
[347997009,1736263840002,-500.0,0.00019726,3]
[347997011,1736263840012,-500.0,0.00019726,3]
[347997013,1736263840021,-500.0,0.00019726,3]
[347997015,1736263840031,-500.0,0.00019726,3]
[347997017,1736263840040,-500.0,0.00019726,3]
[347997019,1736263840049,-500.0,0.00019726,3]
[347997021,1736263840059,-500.0,0.00019726,3]
[347997023,1736263840069,-500.0,0.00019726,3]
[347997025,1736263840079,-500.0,0.00019726,3]
[347997027,1736263840089,-500.0,0.00019726,3]
[347997029,1736263840099,-500.0,0.00019726,3]
[347997031,1736263840110,-500.0,0.00019726,3]
[347997033,1736263840119,-500.0,0.00019726,3]
[347997035,1736263840129,-502.16,0.00019726,3]
[347997038,1736263840138,-500.0,0.00019726,3]
[347997039,1736263840147,-500.0,0.00019726,3]
[347997041,1736263840157,-500.0,0.00019726,3]
[347997043,1736263840166,-562.24,0.00019726,3]
[347997045,1736263840176,-195.34756729,0.00019726,3]
[347997048,1736263840189,-837.18,0.00019726,3]
[347997050,1736263840198,-500.0,0.00019726,3]
[347997051,1736263840208,-1190.48,0.00019726,3]
[347997054,1736263840218,-1149.91,0.00019726,3]
[347997056,1736263840228,-500.0,0.00019726,3]
[347997057,1736263840238,-500.0,0.00019726,3]
[347997060,1736263840248,-500.0,0.00019726,3]
[347997062,1736263840258,-525.39,0.00019726,3]
[347997064,1736263840269,-500.0,0.00019726,3]
[347997065,1736263840278,-500.0,0.00019726,3]
[347997067,1736263840288,-500.0,0.00019726,3]
[347997069,1736263840298,-500.0,0.00019726,3]
[347997071,1736263840307,-500.0,0.00019726,3]
[347997073,1736263840316,-1110.1,0.00019726,3]
[347997075,1736263840326,-795.42,0.00019726,3]
[347997077,1736263840336,-771.17,0.00019726,3]
[347997079,1736263840346,-726.21,0.00019726,3]
[347997081,1736263840358,-500.0,0.00019726,3]
[347997083,1736263840368,-500.0,0.00019726,3]
[347997085,1736263840378,-500.0,0.00019726,3]
[347997087,1736263840387,-500.0,0.00019726,3]
[347997089,1736263840397,-500.0,0.00019726,3]
[347997091,1736263840406,-500.0,0.00019726,3]
[347997093,1736263840415,-445.45335953,0.00019726,3]
[347997095,1736263840425,-500.0,0.00019726,3]
[347997097,1736263840435,-1358.95,0.00019726,3]
[347997099,1736263840445,-500.0,0.00019726,3]
[347997101,1736263840454,-500.0,0.00019726,3]
[347997103,1736263840463,-500.0,0.00019726,3]
[347997105,1736263840473,-728.82,0.00019726,3]
[347997107,1736263840483,-500.0,0.00019726,3]
[347997109,1736263840492,-618.49,0.00019726,3]
[347997111,1736263840501,-500.0,0.00019726,3]
[347997113,1736263840511,-667.58,0.00019726,3]
[347997115,1736263840522,-595.17993799,0.00019726,3]
[347997117,1736263840531,-504.52788573,0.00019726,3]
[347997119,1736263840541,-500.0,0.00019726,3]
[347997121,1736263840551,-500.0,0.00019726,3]
[347997123,1736263840560,-1383.89,0.00019726,3]
[347997125,1736263840570,-250.07947304,0.00019726,3]
[347997127,1736263840580,-814.18,0.00019726,3]
[347997129,1736263840589,-500.0,0.00019726,3]
[347997131,1736263840599,-6155.47,0.00019726,3]
[347997133,1736263840610,-1040.71,0.00019726,3]
[347997135,1736263840620,-1414.04,0.00019726,3]
[347997137,1736263840629,-500.0,0.00019726,3]
[347997139,1736263840639,-500.0,0.00019726,3]
[347997141,1736263840649,-751.25,0.00019726,3]
[347997143,1736263840659,-500.0,0.00019726,3]
[347997145,1736263840669,-547.39396296,0.00019726,3]
[347997147,1736263840678,-500.0,0.00019726,3]
[347997149,1736263840688,-1546.8,0.00019726,3]
[347997151,1736263840697,-999.05,0.00019726,3]
[347997153,1736263840707,-736.34,0.00019726,3]
[347997155,1736263840716,-500.0,0.00019726,3]
[347997157,1736263840726,-776.57,0.00019726,3]
[347997159,1736263840735,-500.0,0.00019726,3]
[347997161,1736263840746,-773.0,0.00019726,3]
[347997162,1736263840756,-827.58,0.00019726,3]
[347997164,1736263840766,-2337.21,0.00019726,3]
[347997166,1736263840775,-500.0,0.00019726,3]
[347997168,1736263840784,-559.35,0.00019726,3]
[347997170,1736263840794,-500.0,0.00019726,3]
[347997172,1736263840803,-500.0,0.00019726,3]
[347997174,1736263840813,-500.0,0.00019726,3]
[347997176,1736263840822,-906.42,0.00019726,3]
[347997178,1736263840831,-500.0,0.00019726,3]
[347997180,1736263840841,-500.0,0.00019726,3]
[347997182,1736263840850,-542.27,0.00019726,3]
[347997183,1736263840862,-500.0,0.00019726,3]
[347997184,1736263840871,-500.0,0.00019726,3]
[347997185,1736263840881,-500.0,0.00019726,3]
[347997186,1736263840891,-457.96197446,0.00019726,3]
[347997187,1736263840901,-1275.13,0.00019726,3]
[347997188,1736263840912,-500.0,0.00019726,3]
[347997189,1736263840922,-1612.95,0.00019726,3]
[347997191,1736263840932,-500.0,0.00019726,3]
[347997193,1736263840942,-1523.59,0.00019726,3]
[347997195,1736263840951,-500.0,0.00019726,3]
[347997196,1736263840961,-500.0,0.00019726,3]
[347997197,1736263840970,-500.0,0.00019726,3]
[347997198,1736263840979,-500.0,0.00019726,3]
[347997199,1736263840988,-500.0,0.00019726,3]
[347997200,1736263840998,-500.0,0.00019726,3]
[347997202,1736263841007,-1375.03,0.00019726,3]
[347997204,1736263841017,-500.0,0.00019726,3]
[347997206,1736263841026,-575.94,0.00019726,3]
[347997208,1736263841035,-500.0,0.00019726,3]
[347997210,1736263841045,-4023.33,0.00019726,3]
[347997212,1736263841055,-500.0,0.00019726,3]
[347997213,1736263841064,-1007.28,0.00019726,3]
[347997215,1736263841074,-500.0,0.00019726,3]
[347997216,1736263841083,-590.09,0.00019726,3]
[347997218,1736263841092,-500.0,0.00019726,3]
[347997220,1736263841102,-1030.77,0.00019726,3]
[347997222,1736263841116,-3539.04,0.00019726,3]
[347997224,1736263841126,-500.0,0.00019726,3]
[347997226,1736263841135,-500.0,0.00019726,3]
[347997227,1736263841145,-30570.14,0.00019726,3]
[347997229,1736263841156,-445.94802594,0.00019726,3]
[347997231,1736263841165,-1517.96,0.00019726,3]
[347997233,1736263841176,-500.0,0.00019726,3]
[347997234,1736263841186,-500.0,0.00019726,3]
[347997235,1736263841197,-500.0,0.00019726,3]
[347997236,1736263841206,-500.0,0.00019726,3]
[347997237,1736263841216,-633.13425546,0.00019726,3]
[347997238,1736263841227,-500.0,0.00019726,3]
[347997239,1736263841236,-921.02,0.00019726,3]
[347997240,1736263841246,-500.0,0.00019726,3]
[347997241,1736263841255,-2766.53,0.00019726,3]
[347997242,1736263841265,-500.0,0.00019726,3]
[347997243,1736263841275,-500.0,0.00019726,3]
[347997244,1736263841286,-500.0,0.00019726,2]
[347997245,1736263841296,-500.0,0.00019726,3]
[347997246,1736263841305,-8812.14,0.00019726,3]
[347997247,1736263841315,-879.36,0.00019726,3]
[347997248,1736263841324,-500.0,0.00019726,3]
[347997249,1736263841334,-731.48,0.00019726,3]
[347997250,1736263841344,-597.79536954,0.00019726,2]
[347997251,1736263841354,-500.0,0.00019726,3]
[347997252,1736263841370,-500.0,0.00019726,3]
[347997253,1736263841379,-500.0,0.00019726,3]
[347997254,1736263841389,-950.17,0.00019726,3]
[347997255,1736263841398,-1296.81,0.00019726,3]
[347997256,1736263841408,-500.0,0.00019726,3]
[347997257,1736263841417,-500.0,0.00019726,3]
[347997258,1736263841427,-2492.97,0.00019726,3]
[347997259,1736263841436,-201.60128324,0.00019726,3]
[347997260,1736263841446,-545.75,0.00019726,3]
[347997261,1736263841455,-585.54,0.00019726,3]
[347997262,1736263841465,-500.0,0.00019726,3]
[347997263,1736263841475,-500.0,0.00019726,3]
[347997264,1736263841485,-1000.0,0.0001974,10]
[347997265,1736263841494,-1000.0,0.0001976,10]
[347997266,1736263841504,-4549.22276765,0.00019762,2]
[347997267,1736263841513,-1000.0,0.0001978,10]
[347997268,1736263841523,-1000.0,0.000198,10]
[347997269,1736263841534,-1000.0,0.0001982,10]
[347997270,1736263841543,-1000.0,0.0001984,10]
[347997271,1736263841552,-1000.0,0.0001986,10]
[347997272,1736263841562,-1000.0,0.0001988,10]
[347997273,1736263841572,-1000.0,0.000199,10]
[347997274,1736263841582,-1000.0,0.0001992,10]
[347997275,1736263841592,-4549.22276765,0.00019934,2]
[347997276,1736263841602,-1000.0,0.0001994,10]
[347997277,1736263841616,-1000.0,0.0001996,10]
[347997278,1736263841626,-1000.0,0.0001998,10]
[347997279,1736263841633,-500.0,0.0002,3]
[347997280,1736263841642,-160.0,0.0002,2]
[347997281,1736263841651,-581.59,0.0002,3]
[347997282,1736263841661,-500.0,0.0002,3]
[347997283,1736263841671,-500.0,0.0002,3]
[347997284,1736263841680,-500.0,0.0002,3]
[347997285,1736263841689,-500.0,0.0002,3]
[347997286,1736263841699,-537.31,0.0002,3]
[347997287,1736263841708,-500.0,0.0002,3]
[347997288,1736263841718,-500.0,0.0002,3]
[347997289,1736263841727,-500.0,0.0002,3]
[347997290,1736263841738,-500.0,0.0002,3]
[347997291,1736263841747,-500.0,0.0002,3]
[347997292,1736263841756,-500.0,0.0002,3]
[347997293,1736263841765,-500.0,0.0002,3]
[347997294,1736263841775,-344.77588925,0.0002,3]
[347997295,1736263841784,-500.0,0.0002,3]
[347997296,1736263841794,-500.0,0.0002,2]
[347997297,1736263841803,-500.0,0.0002,3]
[347997298,1736263841813,-524.4524063,0.0002,3]
[347997299,1736263841822,-500.0,0.0002,3]
[347997300,1736263841831,-500.0,0.0002,3]
[347997301,1736263841841,-6647.35,0.0002,3]
[347997302,1736263841850,-529.3555186,0.0002,3]
[347997303,1736263841860,-500.0,0.0002,3]
[347997304,1736263841879,-500.0,0.0002,3]
[347997305,1736263841888,-500.0,0.0002,3]
[347997306,1736263841898,-500.0,0.0002,3]
[347997307,1736263841908,-500.0,0.0002,3]
[347997308,1736263841917,-500.0,0.0002,3]
[347997309,1736263841929,-503.63358157,0.0002,3]
[347997310,1736263841939,-500.0,0.0002,3]
[347997311,1736263841948,-500.0,0.0002,3]
[347997312,1736263841958,-500.0,0.0002,3]
[347997313,1736263841967,-500.0,0.0002,3]
[347997314,1736263841977,-500.0,0.0002,3]
[347997315,1736263841987,-339.06480048,0.0002,3]
[347997316,1736263841996,-500.0,0.0002,3]
[347997317,1736263842006,-500.0,0.0002,3]
[347997318,1736263842017,-502.16,0.0002,3]
[347997320,1736263842026,-500.0,0.0002,3]
[347997322,1736263842035,-500.0,0.0002,3]
[347997324,1736263842044,-500.0,0.0002,3]
[347997326,1736263842054,-562.24,0.0002,3]
[347997328,1736263842064,-837.18,0.0002,3]
[347997330,1736263842073,-1000.0,0.0002,10]
[347997332,1736263842084,-500.0,0.0002,3]
[347997334,1736263842094,-1190.48,0.0002,3]
[347997335,1736263842104,-1149.91,0.0002,3]
[347997338,1736263842121,-500.0,0.0002,3]
[347997340,1736263842131,-500.0,0.0002,3]
[347997342,1736263842140,-500.0,0.0002,3]
[347997343,1736263842151,-525.39,0.0002,3]
[347997346,1736263842161,-500.0,0.0002,3]
[347997347,1736263842170,-500.0,0.0002,3]
[347997349,1736263842180,-500.0,0.0002,3]
[347997351,1736263842189,-500.0,0.0002,3]
[347997354,1736263842203,-510.15460416,0.0002,3]
[347997355,1736263842212,-1110.1,0.0002,3]
[347997357,1736263842222,-795.42,0.0002,3]
[347997359,1736263842233,-771.17,0.0002,3]
[347997361,1736263842242,-726.21,0.0002,3]
[347997363,1736263842251,-500.0,0.0002,3]
[347997365,1736263842262,-480.51984768,0.0002,3]
[347997368,1736263842273,-500.0,0.0002,3]
[347997370,1736263842284,-500.0,0.0002,3]
[347997371,1736263842293,-500.0,0.0002,3]
[347997373,1736263842303,-500.0,0.0002,3]
[347997375,1736263842313,-500.0,0.0002,3]
[347997377,1736263842323,-1358.95,0.0002,3]
[347997379,1736263842333,-515.2948383,0.0002,3]
[347997381,1736263842343,-500.0,0.0002,3]
[347997383,1736263842352,-500.0,0.0002,3]
[347997385,1736263842367,-728.82,0.0002,3]
[347997386,1736263842377,-519.75542419,0.0002,3]
[347997388,1736263842387,-15011.0,0.0002,2]
[347997390,1736263842397,-618.49,0.0002,3]
[347997392,1736263842407,-500.0,0.0002,3]
[347997395,1736263842417,-667.58,0.0002,3]
[347997397,1736263842427,-500.0,0.0002,3]
[347997399,1736263842437,-500.0,0.0002,3]
[347997401,1736263842447,-1383.89,0.0002,3]
[347997402,1736263842456,-814.18,0.0002,3]
[347997404,1736263842467,-500.0,0.0002,3]
[347997406,1736263842476,-6155.47,0.0002,3]
[347997407,1736263842486,-1040.71,0.0002,3]
[347997410,1736263842496,-1414.04,0.0002,3]
[347997413,1736263842506,-500.0,0.0002,3]
[347997415,1736263842515,-500.0,0.0002,3]
[347997417,1736263842526,-751.25,0.0002,3]
[347997419,1736263842537,-500.0,0.0002,3]
[347997421,1736263842546,-500.0,0.0002,3]
[347997422,1736263842557,-1546.8,0.0002,3]
[347997423,1736263842566,-999.05,0.0002,3]
[347997425,1736263842576,-736.34,0.0002,3]
[347997427,1736263842588,-500.0,0.0002,3]
[347997429,1736263842598,-776.57,0.0002,3]
[347997431,1736263842608,-500.0,0.0002,3]
[347997433,1736263842625,-773.0,0.0002,3]
[347997435,1736263842636,-2337.21,0.0002,3]
[347997437,1736263842646,-827.58,0.0002,3]
[347997439,1736263842656,-500.0,0.0002,3]
[347997441,1736263842666,-559.35,0.0002,3]
[347997443,1736263842675,-500.0,0.0002,3]
[347997445,1736263842685,-500.0,0.0002,3]
[347997447,1736263842695,-500.0,0.0002,3]
[347997449,1736263842704,-906.42,0.0002,3]
[347997450,1736263842713,-500.0,0.0002,3]
[347997453,1736263842723,-500.0,0.0002,3]
[347997454,1736263842732,-542.27,0.0002,3]
[347997456,1736263842742,-500.0,0.0002,3]
[347997458,1736263842751,-500.0,0.0002,3]
[347997460,1736263842761,-500.0,0.0002,3]
[347997463,1736263842771,-1275.13,0.0002,3]
[347997466,1736263842781,-500.0,0.0002,3]
[347997468,1736263842791,-1612.95,0.0002,3]
[347997470,1736263842801,-500.0,0.0002,3]
[347997472,1736263842811,-1523.59,0.0002,3]
[347997474,1736263842820,-500.0,0.0002,3]
[347997494,1736263842947,-500.0,0.0002,3]
[347997496,1736263842958,-500.0,0.0002,3]
[347997499,1736263842968,-500.0,0.0002,3]
[347997502,1736263842978,-500.0,0.0002,3]
[347997504,1736263842988,-1085.81817826,0.0002,2]
[347997507,1736263842998,-500.0,0.0002,3]
[347997512,1736263843008,-1375.03,0.0002,3]
[347997515,1736263843018,-500.0,0.0002,3]
[347997519,1736263843027,-575.94,0.0002,3]
[347997523,1736263843037,-500.0,0.0002,3]
[347997527,1736263843047,-4023.33,0.0002,3]
[347997531,1736263843057,-1007.28,0.0002,3]
[347997533,1736263843067,-511.59490707,0.0002,3]
[347997535,1736263843078,-590.09,0.0002,3]
[347997537,1736263843087,-500.0,0.0002,3]
[347997539,1736263843098,-1030.77,0.0002,3]
[347997542,1736263843107,-3539.04,0.0002,3]
[347997544,1736263843120,-500.0,0.0002,3]
[347997546,1736263843134,-30570.14,0.0002,3]
[347997548,1736263843144,-1517.96,0.0002,3]
[347997550,1736263843153,-500.0,0.0002,3]
[347997552,1736263843163,-500.0,0.0002,3]
[347997554,1736263843173,-500.0,0.0002,3]
[347997556,1736263843183,-500.0,0.0002,3]
[347997558,1736263843195,-500.0,0.0002,3]
[347997560,1736263843205,-921.02,0.0002,3]
[347997562,1736263843215,-517.46983912,0.0002,3]
[347997564,1736263843225,-2766.53,0.0002,3]
[347997565,1736263843236,-500.0,0.0002,3]
[347997566,1736263843246,-500.0,0.0002,3]
[347997567,1736263843256,-500.0,0.0002,2]
[347997568,1736263843267,-500.0,0.0002,3]
[347997569,1736263843279,-8812.14,0.0002,3]
[347997570,1736263843288,-879.36,0.0002,3]
[347997571,1736263843298,-500.0,0.0002,3]
[347997572,1736263843309,-731.48,0.0002,3]
[347997573,1736263843319,-500.0,0.0002,3]
[347997574,1736263843328,-500.0,0.0002,3]
[347997575,1736263843338,-294.62639875,0.0002,3]
[347997576,1736263843348,-950.17,0.0002,3]
[347997577,1736263843358,-1296.81,0.0002,3]
[347997578,1736263843371,-500.0,0.0002,3]
[347997579,1736263843381,-500.0,0.0002,3]
[347997580,1736263843392,-2492.97,0.0002,3]
[347997581,1736263843402,-545.75,0.0002,3]
[347997582,1736263843413,-585.54,0.0002,3]
[347997584,1736263843423,-500.0,0.0002,3]
[347997586,1736263843433,-575.584,0.0002004,2]
[347997588,1736263843443,-2000.0,0.000201,2]
[347997591,1736263843453,-4549.22276765,0.00020107,2]
[347997594,1736263843463,-2000.0,0.000202,2]
[347997597,1736263843472,-1092.98261708,0.00020225,2]
[347997600,1736263843483,-153.6,0.00020273,2]
[347997603,1736263843494,-500.0,0.00020273,3]
[347997605,1736263843503,-581.59,0.00020273,3]
[347997607,1736263843514,-500.0,0.00020273,3]
[347997609,1736263843523,-500.0,0.00020273,3]
[347997611,1736263843533,-500.0,0.00020273,3]
[347997613,1736263843543,-500.0,0.00020273,3]
[347997615,1736263843553,-537.31,0.00020273,3]
[347997617,1736263843563,-518.20181677,0.00020273,3]
[347997619,1736263843572,-504.87747818,0.00020273,3]
[347997621,1736263843582,-500.0,0.00020273,3]
[347997623,1736263843593,-500.0,0.00020273,3]
[347997626,1736263843603,-500.0,0.00020273,3]
[347997628,1736263843615,-500.0,0.00020273,3]
[347997629,1736263843625,-500.0,0.00020273,3]
[347997631,1736263843635,-500.0,0.00020273,3]
[347997633,1736263843645,-500.0,0.00020273,2]
[347997636,1736263843655,-500.0,0.00020273,3]
[347997638,1736263843664,-500.0,0.00020273,3]
[347997640,1736263843674,-500.0,0.00020273,3]
[347997644,1736263843684,-6647.35,0.00020273,3]
[347997647,1736263843693,-500.0,0.00020273,3]